bitfinex-derivatives/quotes_SOLF0:USTF0_20240920
["timestamp","ask_amount","ask_price","bid_price","bid_amount"]
[1726802402824,3.4886,143.31,143.28,3.489]
[1726802403132,3.4886,143.31,143.28,14.219]
[1726802404126,3.4886,143.3,143.28,14.219]
[1726802405227,3.4884,143.31,143.28,10.73]
[1726802405423,14.20507638,143.32,143.23,3.51626351]
[1726802405625,14.20507638,143.32,143.27,10.73]
[1726802406232,3.4885,143.31,143.28,3.4891]
[1726802406529,3.4885,143.31,143.28,14.2191]
[1726802406833,3.4884,143.31,143.28,14.219]
[1726802407634,10.73,143.31,143.27,3.4892]
[1726802408027,10.73,143.3,143.25,10.73]
[1726802408233,10.73,143.29,143.25,10.73]
[1726802408735,10.73,143.3,143.26,3.4896]
[1726802409033,10.73,143.3,143.25,10.73]
[1726802409224,3.4893,143.28,143.25,14.2196]
[1726802410236,10.73,143.31,143.27,14.2192]
[1726802410529,10.73,143.31,143.27,10.73]
[1726802410730,3.4888,143.3,143.27,14.2193]
[1726802412131,14.2185,143.31,143.28,3.489]
[1726802412332,14.2185,143.31,143.27,10.73]
[1726802412333,10.73,143.31,143.27,10.73]
[1726802412631,3.4887,143.3,143.27,14.2192]
[1726802412837,3.4887,143.3,143.27,10.73]
[1726802413634,10.73,143.31,143.27,10.73]
[1726802414028,3.4888,143.3,143.27,14.2192]
[1726802415234,402.80509706,143.53,143.29,10.73]
[1726802415428,4.1678,143.4,143.34,10.73]
[1726802415735,10.73,143.38,143.33,10.73]
[1726802416033,3.56424185,143.37,143.33,10.73]
[1726802416235,4.1678,143.4,143.34,10.73]
[1726802416430,3.4868,143.38,143.35,14.2174]
[1726802416625,3.4868,143.38,143.27,7.12914124]
[1726802416626,4.1678,143.4,143.37,10.73]
[1726802416826,4.1678,143.4,143.36,10.73]
[1726802417132,3.4868,143.38,143.34,10.73]
[1726802417633,3.4868,143.38,143.36,10.73]
[1726802419338,3.4869,143.37,143.34,10.73]
[1726802419539,4.1678,143.4,143.36,10.73]
[1726802419739,14.8978,143.4,143.36,10.73]
[1726802419935,3.4866,143.39,143.36,14.217]
[1726802420134,3.4866,143.39,143.36,10.73]
[1726802420329,14.2166,143.39,143.36,14.217]
[1726802421734,3.4867,143.38,143.29,7.12567866]
[1726802421936,10.73,143.37,143.33,10.73]
[1726802422230,14.8978,143.4,143.36,10.73]
[1726802422536,14.2166,143.39,143.36,3.4871]
[1726802422726,14.2166,143.39,143.35,10.73]
[1726802422930,14.2166,143.39,143.35,14.2173]
[1726802423130,14.2166,143.39,143.35,10.73]
[1726802423329,10.73,143.39,143.35,10.73]
[1726802424635,3.44280498,143.45,143.37,10.73]
[1726802424931,10.73,143.42,143.38,10.73]
[1726802425126,10.73,143.4,143.37,10.73]
[1726802425329,10.73,143.4,143.35,10.73]
[1726802426234,10.73,143.4,143.37,14.2169]
[1726802427344,14.216,143.41,143.37,14.2169]
[1726802427630,14.216,143.41,143.38,3.4866]
[1726802427840,3.4863,143.4,143.37,10.73]
[1726802428230,10.73,143.41,143.37,10.73]
[1726802428636,14.2161,143.41,143.37,10.73]
[1726802428831,14.2161,143.41,143.37,14.2167]
[1726802429936,14.2161,143.41,143.38,3.4866]
[1726802431138,14.2162,143.4,143.37,3.4869]
[1726802431432,10.73,143.41,143.37,10.73]
[1726802432028,14.2161,143.41,143.38,3.4866]
[1726802432632,3.4863,143.4,143.37,14.2169]
[1726802433959,14.2163,143.4,143.37,3.4869]
[1726802435135,3.4864,143.39,143.36,14.217]
[1726802437844,10.73,143.37,143.32,10.73]
[1726802438041,10.73,143.34,143.31,10.73]
[1726802438242,3.4886,143.31,143.28,3.489]
[1726802438433,10.73,143.31,143.27,10.73]
[1726802439142,10.73,143.31,143.24,1.3768]
[1726802439143,14.2182,143.32,143.29,3.4887]
[1726802439338,1.3346,143.41,143.29,10.73]
[1726802439539,10.73,143.33,143.3,3.4886]
[1726802439740,14.23704768,143.33,143.29,10.73]
[1726802439942,3.4881,143.32,143.29,3.4887]
[1726802441040,17.72504768,143.33,143.29,3.4887]
[1726802441241,14.23704768,143.33,143.29,3.4887]
[1726802441448,3.50704768,143.33,143.24,1.3768]
[1726802441643,1.3346,143.41,143.25,10.73]
[1726802441840,10.73,143.29,143.26,3.4894]
[1726802442038,14.28396658,143.31,143.27,10.73]
[1726802443143,17.77246658,143.31,143.27,14.2193]
[1726802443642,3.4887,143.3,143.27,14.2193]
[1726802444240,14.2184,143.31,143.28,3.4891]
[1726802446150,14.2188,143.3,143.26,10.73]
[1726802446741,14.2188,143.3,143.26,14.2195]
[1726802447142,4.93141359,143.32,143.25,10.73]
[1726802447345,10.73,143.28,143.2,2.6562]
[1726802447542,10.73,143.28,143.25,10.73]
[1726802448453,1.3583,143.31,143.26,10.73]
[1726802448650,10.73,143.28,143.24,10.73]
[1726802448847,3.4893,143.28,143.25,14.2197]
[1726802449046,10.73,143.29,143.25,14.2197]
[1726802450051,14.2189,143.29,143.25,14.2197]
[1726802451649,14.2189,143.29,143.26,3.4896]
[1726802453346,3.4889,143.29,143.26,14.2196]
[1726802453948,14.2187,143.3,143.26,10.73]
[1726802454155,2.8194,143.31,143.27,10.73]
[1726802454649,2.8194,143.31,143.29,3.4888]
[1726802455053,1.471,143.32,143.29,14.2188]
[1726802456150,3.4878,143.34,143.3,10.73]
[1726802456754,3.4878,143.34,143.31,3.4882]
[1726802457255,3.4878,143.34,143.3,10.73]
[1726802457256,3.4878,143.34,143.3,14.2185]
[1726802458855,3.488,143.33,143.3,3.4885]
[1726802459048,10.73,143.32,143.29,14.2187]
[1726802459255,10.73,143.32,143.29,3.4887]
[1726802460757,14.2183,143.32,143.29,3.4887]
[1726802461057,3.4883,143.32,143.29,3.4887]
[1726802461250,14.2183,143.32,143.3,3.4886]
[1726802461454,17.69444115,143.33,143.3,3.4886]
[1726802461653,10.73,143.33,143.29,10.73]
[1726802462057,14.29114185,143.33,143.29,10.73]
[1726802462656,3.4883,143.32,143.29,14.2187]
[1726802463160,14.2184,143.31,143.28,3.489]
[1726802464156,1.433,143.38,143.3,10.73]
[1726802464358,12.163,143.38,143.35,10.73]
[1726802464761,15.6498,143.38,143.35,14.2173]
[1726802466359,3.4869,143.37,143.35,10.73]
[1726802466559,12.163,143.38,143.34,10.73]
[1726802466763,12.163,143.38,143.34,14.2176]
[1726802466764,3.4871,143.37,143.34,14.2176]
[1726802467358,14.2173,143.36,143.32,10.73]
[1726802467958,14.2173,143.36,143.32,3.488]
[1726802467959,3.4873,143.36,143.32,3.488]
[1726802468163,3.4875,143.35,143.32,3.488]
[1726802470270,3.4875,143.35,143.33,3.4879]
[1726802470857,3.4872,143.36,143.33,3.4879]
[1726802471062,1.433,143.38,143.31,16.76]
[1726802471364,3.4869,143.37,143.33,16.76]
[1726802472178,4.9197,143.38,143.35,3.4874]
[1726802473082,3.4865,143.39,143.36,3.487]
[1726802474179,3.4868,143.38,143.35,3.4873]
[1726802475376,3.4868,143.38,143.33,16.76]
[1726802475774,3.4865,143.39,143.33,16.76]
[1726802476478,3.4865,143.39,143.36,3.487]
[1726802478679,1.4634,143.4,143.34,16.76]
[1726802479283,1.4634,143.4,143.37,3.4867]
[1726802480086,4.9496,143.4,143.37,3.4867]
[1726802483387,1.4634,143.4,143.34,16.76]
[1726802483786,16.76,143.43,143.34,16.76]
[1726802484084,18.2281,143.43,143.37,3.4867]
[1726802484487,21.66237836,143.43,143.37,3.4867]
[1726802484686,3.4861,143.41,143.37,3.4867]
[1726802485386,3.4861,143.41,143.38,3.4866]
[1726802486389,3.4863,143.4,143.37,3.4869]
[1726802487891,14.2063,143.4,143.37,3.4869]
[1726802490294,3.4863,143.4,143.37,3.4869]
[1726802490492,3.4861,143.41,143.38,14.2067]
[1726802490895,4.90237836,143.43,143.39,10.72]
[1726802491095,15.62237836,143.43,143.4,3.4861]
[1726802491402,15.62237836,143.43,143.39,10.72]
[1726802491701,3.4857,143.42,143.39,14.2063]
[1726802493206,19.10787836,143.43,143.39,10.72]
[1726802493905,14.2058,143.42,143.39,3.4863]
[1726802494908,14.2058,143.42,143.39,14.2063]
[1726802494909,3.4858,143.42,143.39,14.2063]
[1726802495297,19.10797836,143.43,143.39,10.72]
[1726802495502,15.62237836,143.43,143.39,10.72]
[1726802496211,1.4681,143.43,143.4,10.72]
[1726802496411,5.00339112,143.43,143.4,10.72]
[1726802496797,4.9537,143.43,143.4,14.2062]
[1726802499302,4.9537,143.43,143.4,3.4862]
[1726802499609,4.9537,143.43,143.31,1.201]
[1726802499610,1.4681,143.43,143.31,1.201]
[1726802499805,10.72,143.4,143.36,10.72]
[1726802500204,1.4681,143.43,143.36,10.72]
[1726802500407,10.72,143.4,143.35,10.72]
[1726802500707,3.4866,143.39,143.35,10.72]
[1726802501211,1.4681,143.43,143.35,10.72]
[1726802501413,10.72,143.39,143.35,10.72]
[1726802502210,10.72,143.4,143.36,10.72]
[1726802502704,14.2064,143.4,143.37,10.72]
[1726802502904,14.2064,143.4,143.36,10.72]
[1726802503300,1.4681,143.43,143.31,1.201]
[1726802503616,10.72,143.39,143.35,10.72]
[1726802504005,3.4868,143.38,143.36,10.72]
[1726802505005,3.4865,143.39,143.36,10.72]
[1726802506212,3.4865,143.39,143.34,3.4875]
[1726802506410,3.4867,143.38,143.35,10.72]
[1726802507213,10.72,143.4,143.36,10.72]
[1726802507616,10.72,143.41,143.36,10.72]
[1726802507812,3.4864,143.4,143.36,14.2071]
[1726802508016,10.72,143.4,143.36,10.72]
[1726802508519,3.4866,143.39,143.36,10.72]
[1726802509415,3.4867,143.38,143.35,14.2072]
[1726802511021,3.4867,143.38,143.35,10.72]
[1726802511513,3.4871,143.37,143.34,14.2076]
[1726802512213,3.4873,143.36,143.33,14.2078]
[1726802512615,3.4874,143.35,143.33,10.72]
[1726802513118,10.72,143.37,143.33,10.72]
[1726802514509,1.4681,143.43,143.28,1.4]
[1726802514708,10.72,143.34,143.26,1.1999]
[1726802514915,3.50024314,143.33,143.3,10.72]
[1726802515217,10.72,143.33,143.28,10.72]
[1726802515411,10.72,143.33,143.24,1.4076]
[1726802515616,3.4884,143.31,143.29,10.72]
[1726802516019,3.440231,143.32,143.29,10.72]
[1726802516216,3.4882,143.32,143.29,14.2088]
[1726802516718,6.94010652,143.32,143.29,14.2088]
[1726802516917,1.4681,143.43,143.31,10.72]
[1726802517127,10.72,143.36,143.31,10.72]
[1726802517317,3.5053027,143.35,143.31,10.72]
[1726802518221,10.72,143.35,143.31,10.72]
[1726802518418,14.13840302,143.35,143.31,10.72]
[1726802518813,3.4878,143.34,143.31,10.72]
[1726802520411,14.13840302,143.35,143.31,10.72]
[1726802520617,14.13840302,143.35,143.29,10.72]
[1726802520618,3.41840302,143.35,143.29,10.72]
[1726802520919,10.72,143.33,143.29,10.72]
[1726802521117,3.4881,143.32,143.29,10.72]
[1726802521926,1.4681,143.43,143.31,10.72]
[1726802522121,1.4681,143.43,143.34,10.72]
[1726802522318,1.4681,143.43,143.26,1.1991]
[1726802522319,10.72,143.39,143.35,10.72]
[1726802522715,3.4871,143.37,143.34,10.72]
[1726802523726,10.72,143.39,143.35,10.72]
[1726802524323,1.4681,143.43,143.33,10.72]
[1726802524539,10.72,143.37,143.33,10.72]
[1726802525025,14.2071,143.37,143.33,10.72]
[1726802525223,10.72,143.38,143.33,10.72]
[1726802525426,1.4681,143.43,143.33,10.72]
[1726802525629,10.72,143.37,143.33,10.72]
[1726802527138,14.207,143.37,143.34,3.4876]
[1726802527818,3.487,143.37,143.34,3.4876]
[1726802529328,3.49047372,143.36,143.27,14.25437288]
[1726802529531,10.72,143.35,143.31,10.72]
[1726802529722,14.208,143.33,143.3,3.4886]
[1726802529922,10.72,143.33,143.29,10.72]
[1726802530428,14.2081,143.33,143.29,14.2087]
[1726802531520,3.4882,143.32,143.29,14.2087]
[1726802534434,14.2082,143.32,143.29,14.2087]
[1726802534832,14.2082,143.32,143.29,10.72]
[1726802535031,3.49375263,143.34,143.24,1.4076]
[1726802535032,10.72,143.3,143.24,1.4076]
[1726802535232,6.9717,143.42,143.25,10.72]
[1726802535233,4.2243,143.33,143.25,10.72]
[1726802535438,10.72,143.29,143.25,14.2097]
[1726802535635,7.73599068,143.33,143.2,25.65801291]
[1726802535830,10.72,143.27,143.22,10.72]
[1726802536136,3.4897,143.26,143.22,10.72]
[1726802536338,10.72,143.27,143.22,10.72]
[1726802536527,10.72,143.27,143.22,14.2103]
[1726802537129,3.4898,143.26,143.22,14.2103]
[1726802538633,14.2098,143.26,143.22,14.2103]
[1726802538833,10.72,143.25,143.21,14.2107]
[1726802539040,10.72,143.25,143.21,3.4907]
[1726802539341,7.73599068,143.33,143.24,14.2099]
[1726802539539,10.72,143.27,143.23,10.72]
[1726802539740,7.73599068,143.33,143.23,10.72]
[1726802539937,10.72,143.26,143.23,10.72]
[1726802540639,3.4822249,143.25,143.22,10.72]
[1726802540833,10.72,143.26,143.22,10.72]
[1726802541029,3.4899,143.25,143.22,14.2103]
[1726802541234,7.06256777,143.25,143.22,14.2103]
[1726802542239,3.57266777,143.25,143.23,3.4903]
[1726802543243,3.57266777,143.25,143.23,14.2103]
[1726802543742,14.2097,143.26,143.23,14.2103]
[1726802543944,7.73599068,143.33,143.24,10.72]
[1726802544142,7.73599068,143.33,143.27,10.72]
[1726802544445,3.4887,143.3,143.26,10.72]
[1726802544642,10.72,143.29,143.25,10.72]
[1726802545245,7.73599068,143.33,143.27,10.72]
[1726802545446,18.45599068,143.33,143.28,10.72]
[1726802546342,3.4885,143.31,143.28,14.209]
[1726802546544,14.2085,143.31,143.28,14.209]
[1726802548037,14.2085,143.31,143.28,10.72]
[1726802549046,10.72,143.29,143.25,10.72]
[1726802549554,10.72,143.29,143.26,3.4894]
[1726802550054,14.2085,143.31,143.27,14.2093]
[1726802550251,10.72,143.31,143.27,14.2093]
[1726802551038,3.4886,143.3,143.27,14.2093]
[1726802551242,10.72,143.31,143.27,14.2093]
[1726802551446,10.72,143.31,143.28,3.489]
[1726802551753,14.2085,143.31,143.28,3.489]
[1726802551946,3.4885,143.31,143.28,3.489]
[1726802552852,10.72,143.32,143.29,3.4887]
[1726802553154,10.72,143.32,143.27,10.72]
[1726802553549,10.72,143.32,143.28,3.4889]
[1726802558353,14.2086,143.31,143.28,3.4889]
[1726802559547,7.73599068,143.33,143.28,10.72]
[1726802559742,7.73599068,143.33,143.22,3.48310368]
[1726802559743,7.73599068,143.33,143.29,10.72]
[1726802559946,18.45599068,143.33,143.29,10.72]
[1726802560143,21.94399068,143.33,143.3,3.4885]
[1726802560441,18.45599068,143.33,143.29,10.72]
[1726802561854,21.94399068,143.33,143.3,3.4885]
[1726802563356,14.2082,143.32,143.29,3.4887]
[1726802566257,14.2082,143.32,143.3,3.4886]
[1726802567249,102.10205807,143.4,143.3,10.72]
[1726802567447,102.10205807,143.4,143.22,3.48310368]
[1726802567448,4.2356,143.39,143.32,10.72]
[1726802567658,10.72,143.38,143.33,10.72]
[1726802568256,4.2356,143.39,143.26,9.6486842]
[1726802568257,10.72,143.36,143.26,9.6486842]
[1726802568557,10.72,143.33,143.29,10.72]
[1726802568753,10.72,143.34,143.3,10.72]
[1726802568957,10.72,143.35,143.3,10.72]
[1726802569849,14.2075,143.35,143.32,3.488]
[1726802577661,14.2077,143.34,143.32,3.488]
[1726802577856,14.2077,143.34,143.31,3.4883]
[1726802578157,10.72,143.35,143.31,10.72]
[1726802578362,10.72,143.35,143.32,3.4881]
[1726802579467,14.2074,143.35,143.32,3.4881]
[1726802579665,10.72,143.34,143.31,3.4883]
[1726802579967,10.72,143.34,143.3,10.72]
[1726802580273,10.72,143.34,143.31,3.4882]
[1726802580460,10.72,143.34,143.29,10.72]
[1726802580658,10.72,143.34,143.31,10.72]
[1726802580963,10.72,143.34,143.32,3.4881]
[1726802581364,10.72,143.33,143.26,2.5237]
[1726802581565,10.72,143.32,143.28,10.72]
[1726802581869,14.13886233,143.31,143.26,10.72]
[1726802582065,17.62736233,143.31,143.27,3.4892]
[1726802582665,17.62736233,143.31,143.28,3.489]
[1726802584468,14.2085,143.31,143.28,3.489]
[1726802584669,17.73554314,143.31,143.28,3.489]
[1726802591474,14.2086,143.3,143.27,3.4893]
[1726802592181,17.66353618,143.3,143.27,3.4893]
[1726802593183,10.72,143.3,143.28,3.4889]
[1726802593385,14.2084,143.31,143.28,3.4889]
[1726802593685,17.72267536,143.31,143.28,3.4889]
[1726802596183,3.4883,143.32,143.29,3.4888]
[1726802596381,10.72,143.31,143.29,3.4888]
[1726802596683,10.72,143.31,143.3,3.4886]
[1726802596885,10.72,143.34,143.29,10.72]
[1726802597084,14.14481413,143.34,143.29,10.72]
[1726802597282,17.63261413,143.34,143.31,3.4882]
[1726802600486,14.2079,143.33,143.3,3.4885]
[1726802601285,17.63251413,143.34,143.31,3.4882]
[1726802601486,10.72,143.34,143.3,10.72]
[1726802602085,10.72,143.34,143.31,3.4881]
[1726802602804,10.72,143.33,143.29,10.72]
[1726802603501,3.52181183,143.32,143.3,3.4886]
[1726802603706,10.72,143.33,143.24,11.40528851]
[1726802604000,6.97451329,143.32,143.29,3.4887]
[1726802604704,6.97451329,143.32,143.28,10.72]
[1726802604705,14.20621329,143.32,143.3,3.4885]
[1726802605590,14.20621329,143.32,143.28,10.72]
[1726802605591,17.69451329,143.32,143.29,3.4888]
[1726802605997,17.69451329,143.32,143.28,10.72]
[1726802606291,17.69451329,143.32,143.29,3.4887]
[1726802608000,4.2356,143.39,143.23,1.1977]
[1726802608001,10.72,143.35,143.3,10.72]
[1726802608294,3.4434174,143.34,143.3,10.72]
[1726802608699,6.9312174,143.34,143.31,3.4882]
[1726802610803,10.72,143.32,143.28,10.72]
[1726802611394,14.2082,143.32,143.29,3.4887]
[1726802613104,3.4882,143.32,143.29,3.4887]
[1726802615201,14.2079,143.33,143.3,3.4886]
[1726802615397,10.72,143.34,143.3,10.72]
[1726802615794,14.2075,143.35,143.32,3.4881]
[1726802616198,17.6409098,143.35,143.32,3.4881]
[1726802616394,3.4877,143.34,143.32,3.4881]
[1726802616996,3.4877,143.34,143.31,14.2083]
[1726802618406,3.4879,143.33,143.31,14.2083]
[1726802618607,3.4879,143.33,143.3,14.2085]
[1726802619200,3.4879,143.33,143.31,3.4883]
[1726802619899,3.4878,143.34,143.31,3.4883]
[1726802620109,10.72,143.34,143.31,3.4883]
[1726802620403,3.4882,143.32,143.3,10.72]
[1726802620605,10.72,143.33,143.3,10.72]
[1726802621405,14.2079,143.33,143.3,10.72]
[1726802621600,14.2079,143.33,143.29,10.72]
[1726802622299,14.2079,143.33,143.29,14.2087]
[1726802623503,3.4882,143.32,143.29,14.2087]
[1726802623710,3.53950918,143.35,143.28,3.489]
[1726802623909,10.72,143.31,143.28,3.489]
[1726802624108,10.72,143.32,143.28,3.489]
[1726802624607,10.72,143.3,143.27,3.4893]
[1726802625608,14.2086,143.3,143.26,14.2095]
[1726802626507,14.2086,143.3,143.27,3.4893]
[1726802628307,3.42119498,143.33,143.29,10.72]
[1726802628308,3.4883,143.32,143.29,10.72]
[1726802628613,3.42119498,143.33,143.29,10.72]
[1726802628614,10.72,143.33,143.29,10.72]
[1726802628802,3.4883,143.32,143.29,10.72]
[1726802629006,6.909727,143.32,143.29,10.72]
[1726802629312,3.4883,143.32,143.29,10.72]
[1726802629905,3.4883,143.32,143.29,14.2088]
[1726802633614,14.2084,143.31,143.28,3.489]
[1726802635416,14.2086,143.3,143.27,3.4893]
[1726802635618,10.72,143.3,143.27,3.4893]
[1726802636114,14.2423036,143.3,143.27,3.4893]
[1726802636714,7.0110036,143.3,143.27,3.4893]
[1726802640107,3.4887,143.3,143.27,3.4893]
[1726802640304,3.56992437,143.32,143.29,14.2088]
[1726802640509,10.72,143.33,143.29,14.2088]
[1726802640717,6.93595099,143.32,143.29,14.2088]
[1726802641112,14.16785099,143.32,143.29,3.4888]
[1726802642619,102.10205807,143.4,143.31,10.72]
[1726802642813,12.1569,143.39,143.35,10.72]
[1726802643421,3.4868,143.38,143.35,14.2072]
[1726802643905,3.4868,143.38,143.28,13.45888749]
[1726802643906,1.4369,143.39,143.36,10.72]
[1726802644809,1.4369,143.39,143.37,3.4868]
[1726802645218,4.8117,143.4,143.37,3.4868]
[1726802645411,1.3255,143.4,143.37,3.4868]
[1726802645719,10.72,143.42,143.37,10.72]
[1726802646117,14.268989,143.42,143.39,3.4862]
[1726802646913,14.268989,143.42,143.38,3.4866]
[1726802646914,14.2058,143.42,143.38,3.4866]
[1726802647222,10.72,143.41,143.36,10.72]
[1726802647423,14.2061,143.41,143.37,3.4868]
[1726802647620,14.2061,143.41,143.36,10.72]
[1726802648615,14.2061,143.41,143.38,3.4867]
[1726802648825,14.2062,143.4,143.36,10.72]
[1726802649013,10.72,143.39,143.29,8.55664663]
[1726802649217,10.72,143.38,143.34,3.4875]
[1726802649619,14.2068,143.38,143.35,3.4874]
[1726802649821,3.4868,143.38,143.35,3.4874]
[1726802650222,3.4865,143.39,143.35,10.72]
[1726802650727,3.4865,143.39,143.36,10.72]
[1726802651423,3.4865,143.39,143.36,14.207]
[1726802651828,10.72,143.4,143.36,10.72]
[1726802652129,12.0547,143.42,143.37,10.72]
[1726802652525,3.486,143.41,143.38,3.4865]
[1726802655015,14.206,143.41,143.38,3.4865]
[1726802655826,3.4863,143.4,143.37,14.2069]
[1726802656623,3.4863,143.4,143.37,3.4869]
[1726802657728,3.4864,143.39,143.36,14.2071]
[1726802658123,3.4869,143.37,143.34,10.72]
[1726802658328,3.4869,143.37,143.35,3.4874]
[1726802658526,10.72,143.4,143.35,10.72]
[1726802658829,3.4866,143.39,143.35,10.72]
[1726802659028,10.72,143.4,143.35,10.72]
[1726802659425,14.2063,143.4,143.35,10.72]
[1726802659624,14.2063,143.4,143.37,3.4869]
[1726802660130,3.486,143.41,143.38,3.4866]
[1726802660429,10.72,143.41,143.36,10.72]
[1726802661230,3.4863,143.4,143.37,3.4868]
[1726802662323,10.72,143.4,143.36,3.4871]
[1726802662731,3.4867,143.38,143.36,3.4871]
[1726802663032,3.4867,143.38,143.35,14.2073]
[1726802663231,1.3347,143.42,143.34,10.72]
[1726802663427,10.72,143.39,143.34,10.72]
[1726802664331,3.4868,143.38,143.35,3.4873]
[1726802664828,3.4868,143.38,143.35,14.2073]
[1726802665034,3.4865,143.39,143.36,3.487]
[1726802665530,3.4865,143.39,143.31,1.1967]
[1726802665531,1.3347,143.42,143.37,10.72]
[1726802665731,3.4863,143.4,143.37,14.2069]
[1726802667032,3.4865,143.39,143.37,14.2069]
[1726802668829,3.4865,143.39,143.37,10.72]
[1726802678039,10.72,143.4,143.36,10.72]
[1726802678334,3.4866,143.39,143.37,10.72]
[1726802682038,10.72,143.41,143.37,10.72]
[1726802682440,3.4863,143.4,143.37,14.2068]
[1726802683136,3.4865,143.39,143.35,3.4872]
[1726802683339,3.4865,143.39,143.35,14.2072]
[1726802684139,3.4865,143.39,143.36,3.4871]
[1726802684634,3.4867,143.38,143.35,10.72]
[1726802684838,3.4867,143.38,143.35,14.2072]
[1726802685341,3.487,143.37,143.35,10.72]
[1726802685537,3.487,143.37,143.34,14.2075]
[1726802685943,3.4868,143.38,143.34,14.2075]
[1726802687038,3.4868,143.38,143.35,3.4873]
[1726802688143,3.4868,143.38,143.35,14.2073]
[1726802688440,3.4868,143.38,143.36,10.72]
[1726802690242,1.3347,143.42,143.37,10.72]
[1726802691346,3.4862,143.4,143.37,14.2068]
[1726802692838,3.4865,143.39,143.36,14.2071]
[1726802698856,10.72,143.4,143.35,3.4873]
[1726802699056,10.72,143.39,143.34,10.72]
[1726802699948,3.487,143.37,143.34,14.2076]
[1726802700346,4.84880242,143.43,143.36,10.72]
[1726802700551,3.4863,143.4,143.38,10.72]
[1726802700750,17.02420242,143.43,143.37,10.72]
[1726802700751,10.72,143.41,143.37,10.72]
[1726802700947,3.4864,143.39,143.37,10.72]
[1726802701750,3.4864,143.39,143.37,14.2069]
[1726802701950,10.72,143.41,143.37,14.2069]
[1726802701951,3.4863,143.4,143.37,14.2069]
[1726802705354,3.4863,143.4,143.38,14.2066]
[1726802705750,10.72,143.42,143.38,10.72]
[1726802706248,10.72,143.42,143.38,14.2066]
[1726802706452,3.4859,143.41,143.38,14.2066]
[1726802707450,3.4858,143.42,143.39,3.4864]
[1726802708850,3.4861,143.41,143.38,14.2066]
[1726802710655,3.4859,143.42,143.39,3.4864]
[1726802712652,3.4859,143.41,143.39,3.4864]
[1726802714457,3.4859,143.41,143.38,3.4866]
[1726802715853,3.4859,143.41,143.39,3.4864]
[1726802716460,3.4858,143.42,143.39,3.4864]
[1726802716655,17.02420242,143.43,143.39,3.4864]
[1726802716656,17.02420242,143.43,143.39,3.4862]
[1726802717659,3.4857,143.42,143.39,3.4862]
[1726802718661,3.486,143.41,143.38,10.72]
[1726802718966,17.02420242,143.43,143.38,10.72]
[1726802719368,3.4858,143.42,143.39,3.4863]
[1726802720071,3.4859,143.41,143.39,3.4863]
[1726802721172,3.4859,143.41,143.38,14.2065]
[1726802721368,17.02420242,143.43,143.38,14.2065]
[1726802721570,3.4862,143.4,143.38,14.2065]
[1726802721770,3.4862,143.4,143.38,3.4865]
[1726802721968,3.4868,143.38,143.31,1.1967]
[1726802722171,10.72,143.38,143.34,10.72]